[Event "*** Titled Tuesday Blitz"]
[Site "Chess.com"]
[Date "2021.03.02"]
[Round "3"]
[White "BogdanDeac"]
[Black "alejogarcia1999"]
[Result "1-0"]
[WhiteElo "2981"]
[BlackElo "2542"]
[TimeControl "180+1"]
[EndTime "10:28:10 PST"]
[Termination "BogdanDeac won by resignation"]

1. e4 {[%clk 0:03:00.9]} 1... c5 {[%clk 0:02:59.9]} 2. Nf3 {[%clk 0:02:58.7]}
2... e6 {[%clk 0:03:00.5]} 3. g3 {[%clk 0:02:46.2]} 3... d5 {[%clk 0:02:58.8]}
4. Nc3 {[%clk 0:02:26.8]} 4... Nf6 {[%clk 0:02:57.4]} 5. d3 {[%clk 0:02:24.4]}
5... dxe4 {[%clk 0:02:55.5]} 6. Nxe4 {[%clk 0:02:20.6]} 6... Nc6 {[%clk
0:02:48.5]} 7. Qe2 {[%clk 0:02:17.8]} 7... Be7 {[%clk 0:02:48.1]} 8. Bg2 {[%clk
0:02:17.8]} 8... O-O {[%clk 0:02:47.7]} 9. O-O {[%clk 0:02:18.1]} 9... b6 {[%clk
0:02:44.2]} 10. Ne5 {[%clk 0:01:54.5]} 10... Nd4 {[%clk 0:02:10.7]} 11. Qd1
{[%clk 0:01:49.4]} 11... Rb8 {[%clk 0:01:44]} 12. c3 {[%clk 0:01:44.6]} 12...
Nxe4 {[%clk 0:01:43.6]} 13. cxd4 {[%clk 0:01:20]} 13... Nf6 {[%clk 0:01:32.2]}
14. Nc6 {[%clk 0:01:19]} 14... Qc7 {[%clk 0:01:27.2]} 15. Bf4 {[%clk 0:01:11.6]}
15... Bd6 {[%clk 0:01:27.1]} 16. Bxd6 {[%clk 0:01:10.9]} 16... Qxd6 {[%clk
0:01:28]} 17. dxc5 {[%clk 0:01:11.1]} 17... bxc5 {[%clk 0:01:26]} 18. Nxb8
{[%clk 0:01:09.3]} 18... Qxb8 {[%clk 0:01:26.9]} 19. Qc2 {[%clk 0:01:08.4]}
19... Nd7 {[%clk 0:01:14.2]} 20. Qc3 {[%clk 0:00:56.8]} 20... Qd6 {[%clk
0:01:13]} 21. Rfd1 {[%clk 0:00:44.8]} 21... e5 {[%clk 0:01:11.5]} 22. a3 {[%clk
0:00:44.6]} 22... Nb6 {[%clk 0:01:03.5]} 23. Rac1 {[%clk 0:00:37.8]} 23... Na4
{[%clk 0:01:00.4]} 24. Qc2 {[%clk 0:00:36.9]} 24... Bd7 {[%clk 0:00:49.7]} 25.
b3 {[%clk 0:00:36.2]} 25... Nb6 {[%clk 0:00:49.1]} 26. Qxc5 {[%clk 0:00:36.2]}
26... Qf6 {[%clk 0:00:49.2]} 27. Re1 {[%clk 0:00:34.2]} 27... Re8 {[%clk
0:00:48.4]} 28. d4 {[%clk 0:00:29.1]} 28... exd4 {[%clk 0:00:47.9]} 29. Rxe8+
{[%clk 0:00:29]} 29... Bxe8 {[%clk 0:00:48.2]} 30. Rd1 {[%clk 0:00:24]} 30...
Qe6 {[%clk 0:00:40.1]} 31. b4 {[%clk 0:00:21.6]} 31... d3 {[%clk 0:00:35.1]} 32.
Rxd3 {[%clk 0:00:19]} 32... h5 {[%clk 0:00:24.1]} 33. Re3 {[%clk 0:00:17.6]}
33... Qd7 {[%clk 0:00:23.4]} 34. Qe7 {[%clk 0:00:17.6]} 34... Qd1+ {[%clk
0:00:23.2]} 35. Re1 {[%clk 0:00:17.5]} 1-0

[Event "*** Titled Tuesday Blitz"]
[Site "Chess.com"]
[Date "2021.03.02"]
[Round "3"]
[White "ZEN-22"]
[Black "sau6on"]
[Result "0-1"]
[WhiteElo "2424"]
[BlackElo "2718"]
[TimeControl "180+1"]
[EndTime "10:28:11 PST"]
[Termination "sau6on won on time"]

1. e3 {[%clk 0:03:00.9]} 1... d5 {[%clk 0:02:39.6]} 2. d4 {[%clk 0:02:59.4]}
2... Nc6 {[%clk 0:02:39.3]} 3. c4 {[%clk 0:02:58.7]} 3... e5 {[%clk 0:02:38.5]}
4. cxd5 {[%clk 0:02:57.5]} 4... Qxd5 {[%clk 0:02:38.5]} 5. Nc3 {[%clk
0:02:56.3]} 5... Bb4 {[%clk 0:02:39]} 6. a3 {[%clk 0:02:54.8]} 6... Bxc3+ {[%clk
0:02:38.8]} 7. bxc3 {[%clk 0:02:53.6]} 7... Nf6 {[%clk 0:02:37.8]} 8. c4 {[%clk
0:02:50.9]} 8... Qd6 {[%clk 0:02:37.5]} 9. d5 {[%clk 0:02:48.2]} 9... Nb8 {[%clk
0:02:35.7]} 10. f3 {[%clk 0:02:47.5]} 10... O-O {[%clk 0:02:29]} 11. e4 {[%clk
0:02:47]} 11... c6 {[%clk 0:02:29.4]} 12. Bd2 {[%clk 0:02:26.1]} 12... Na6
{[%clk 0:02:21.7]} 13. Bd3 {[%clk 0:02:23.5]} 13... Nc5 {[%clk 0:02:20]} 14. Bc2
{[%clk 0:02:22.8]} 14... b5 {[%clk 0:02:15.7]} 15. cxb5 {[%clk 0:02:01.8]} 15...
cxd5 {[%clk 0:02:14.4]} 16. Bb4 {[%clk 0:01:55.8]} 16... a5 {[%clk 0:02:03.9]}
17. bxa6 {[%clk 0:01:55.1]} 17... Bxa6 {[%clk 0:02:03.2]} 18. Ne2 {[%clk
0:01:52.6]} 18... Qb6 {[%clk 0:01:57.9]} 19. exd5 {[%clk 0:01:46.9]} 19... Rfd8
{[%clk 0:01:53.3]} 20. Nc3 {[%clk 0:01:15.3]} 20... Qa7 {[%clk 0:01:24.8]} 21.
Qd2 {[%clk 0:01:07.5]} 21... Bc4 {[%clk 0:01:12.9]} 22. Rd1 {[%clk 0:00:51.4]}
22... Nxd5 {[%clk 0:01:04.9]} 23. Bxc5 {[%clk 0:00:09.8]} 23... Qxc5 {[%clk
0:01:02.5]} 24. Be4 {[%clk 0:00:10.1]} 24... Ra5 {[%clk 0:00:18.7]} 25. Bxd5
{[%clk 0:00:05.6]} 25... Bxd5 {[%clk 0:00:18.7]} 26. Ne4 {[%clk 0:00:05.4]}
26... Qa7 {[%clk 0:00:13.2]} 0-1

[Event "*** Titled Tuesday Blitz"]
[Site "Chess.com"]
[Date "2021.03.02"]
[Round "3"]
[White "SanQui14"]
[Black "Love_craft"]
[Result "0-1"]
[WhiteElo "2377"]
[BlackElo "2566"]
[TimeControl "180+1"]
[EndTime "10:28:11 PST"]
[Termination "Love_craft won on time"]

1. d4 {[%clk 0:03:00.9]} 1... Nf6 {[%clk 0:02:59.5]} 2. c4 {[%clk 0:03:00.9]}
2... g6 {[%clk 0:03:00]} 3. Nc3 {[%clk 0:03:01.2]} 3... Bg7 {[%clk 0:03:00.5]}
4. e4 {[%clk 0:03:01.6]} 4... d6 {[%clk 0:03:00.8]} 5. Nf3 {[%clk 0:03:02.2]}
5... O-O {[%clk 0:03:00.8]} 6. h3 {[%clk 0:03:02.7]} 6... Nbd7 {[%clk
0:03:01.4]} 7. Be3 {[%clk 0:02:59.8]} 7... e5 {[%clk 0:03:01.5]} 8. d5 {[%clk
0:03:00.1]} 8... Nh5 {[%clk 0:02:57.2]} 9. g3 {[%clk 0:02:49.1]} 9... Bf6 {[%clk
0:02:48.7]} 10. Qd2 {[%clk 0:02:42.5]} 10... Be7 {[%clk 0:02:48.1]} 11. g4
{[%clk 0:02:26.2]} 11... Nf4 {[%clk 0:02:46.2]} 12. Bxf4 {[%clk 0:02:23.2]}
12... exf4 {[%clk 0:02:47.1]} 13. Qxf4 {[%clk 0:02:20.4]} 13... Bf6 {[%clk
0:02:47.6]} 14. Qe3 {[%clk 0:02:14.8]} 14... Bg7 {[%clk 0:02:46.6]} 15. O-O-O
{[%clk 0:02:13.2]} 15... a6 {[%clk 0:02:45.3]} 16. Nd4 {[%clk 0:02:08.7]} 16...
Re8 {[%clk 0:02:43.4]} 17. Qd2 {[%clk 0:02:02.2]} 17... Nc5 {[%clk 0:02:42.2]}
18. Bg2 {[%clk 0:01:58.1]} 18... b5 {[%clk 0:02:38.7]} 19. cxb5 {[%clk
0:01:51.5]} 19... axb5 {[%clk 0:02:39.6]} 20. Ndxb5 {[%clk 0:01:47.8]} 20... Ba6
{[%clk 0:02:34]} 21. Nd4 {[%clk 0:01:27.5]} 21... Nd3+ {[%clk 0:02:31.5]} 22.
Kb1 {[%clk 0:01:25.1]} 22... Bxd4 {[%clk 0:02:31.5]} 23. Bf1 {[%clk 0:01:15.2]}
23... Bxc3 {[%clk 0:02:30.6]} 24. bxc3 {[%clk 0:00:51.1]} 24... Rb8+ {[%clk
0:02:24.4]} 25. Ka1 {[%clk 0:00:51]} 25... Nc5 {[%clk 0:02:16.5]} 26. Bxa6
{[%clk 0:00:49.8]} 26... Nxa6 {[%clk 0:02:17.4]} 27. h4 {[%clk 0:00:49.8]} 27...
Rxe4 {[%clk 0:02:12.4]} 28. h5 {[%clk 0:00:49.2]} 28... Qe7 {[%clk 0:02:03.3]}
29. hxg6 {[%clk 0:00:47.4]} 29... fxg6 {[%clk 0:02:04.2]} 30. Rde1 {[%clk
0:00:32.3]} 30... Nc5 {[%clk 0:02:01.4]} 31. f3 {[%clk 0:00:31.2]} 31... Rxe1+
{[%clk 0:01:57.7]} 32. Rxe1 {[%clk 0:00:32.1]} 32... Qf6 {[%clk 0:01:57.1]} 33.
Qe3 {[%clk 0:00:15.8]} 33... Kf7 {[%clk 0:01:38.1]} 34. g5 {[%clk 0:00:14.5]}
34... Qd8 {[%clk 0:00:57.5]} 35. Rh1 {[%clk 0:00:12.1]} 35... Kg8 {[%clk
0:00:54.5]} 36. Qf4 {[%clk 0:00:06.4]} 36... Qe7 {[%clk 0:00:50.2]} 37. Qh4
{[%clk 0:00:03.3]} 37... Qg7 {[%clk 0:00:45.3]} 38. Qc4 {[%clk 0:00:01.5]} 38...
Qe5 {[%clk 0:00:39.7]} 0-1

[Event "*** Titled Tuesday Blitz"]
[Site "Chess.com"]
[Date "2021.03.02"]
[Round "3"]
[White "Konavets"]
[Black "francyIM"]
[Result "1-0"]
[WhiteElo "2943"]
[BlackElo "2685"]
[TimeControl "180+1"]
[EndTime "10:28:12 PST"]
[Termination "Konavets won by checkmate"]

1. e4 {[%clk 0:03:00.9]} 1... c6 {[%clk 0:02:57.8]} 2. d4 {[%clk 0:03:00.6]}
2... g6 {[%clk 0:02:57.7]} 3. Nc3 {[%clk 0:03:01.5]} 3... d5 {[%clk 0:02:58.3]}
4. h3 {[%clk 0:02:45.9]} 4... Bg7 {[%clk 0:02:52.3]} 5. Nf3 {[%clk 0:02:45.4]}
5... dxe4 {[%clk 0:02:47.4]} 6. Nxe4 {[%clk 0:02:46.3]} 6... Nf6 {[%clk
0:02:43.3]} 7. Nxf6+ {[%clk 0:02:46.6]} 7... exf6 {[%clk 0:02:44.2]} 8. Bc4
{[%clk 0:02:46.7]} 8... O-O {[%clk 0:02:42.8]} 9. O-O {[%clk 0:02:46.2]} 9...
Re8 {[%clk 0:02:43.4]} 10. a4 {[%clk 0:02:44]} 10... a5 {[%clk 0:02:36.6]} 11.
c3 {[%clk 0:02:40.7]} 11... Nd7 {[%clk 0:02:32.6]} 12. Qb3 {[%clk 0:02:38.8]}
12... Rf8 {[%clk 0:02:29.3]} 13. Re1 {[%clk 0:02:37]} 13... Nb6 {[%clk 0:02:28]}
14. Bd3 {[%clk 0:02:37]} 14... Be6 {[%clk 0:02:27.4]} 15. Qc2 {[%clk 0:02:35.6]}
15... Rc8 {[%clk 0:02:24.2]} 16. c4 {[%clk 0:02:35.7]} 16... Nd7 {[%clk
0:02:18.6]} 17. b3 {[%clk 0:02:35.3]} 17... Nb8 {[%clk 0:02:16.6]} 18. Ba3
{[%clk 0:02:24.9]} 18... Re8 {[%clk 0:02:14.9]} 19. Rad1 {[%clk 0:02:25]} 19...
Na6 {[%clk 0:02:07.8]} 20. Qc3 {[%clk 0:02:24.3]} 20... f5 {[%clk 0:01:54.8]}
21. Ne5 {[%clk 0:02:14.9]} 21... c5 {[%clk 0:01:50.2]} 22. d5 {[%clk 0:02:04]}
22... Bd7 {[%clk 0:01:45]} 23. f4 {[%clk 0:02:04.2]} 23... Nb4 {[%clk
0:01:43.3]} 24. Bb2 {[%clk 0:02:03.3]} 24... f6 {[%clk 0:01:42]} 25. Nf3 {[%clk
0:01:56.7]} 25... Qb6 {[%clk 0:01:39.6]} 26. Bb1 {[%clk 0:01:54.6]} 26... Qd6
{[%clk 0:01:36.1]} 27. Qd2 {[%clk 0:01:53.1]} 27... Rxe1+ {[%clk 0:01:29.2]} 28.
Rxe1 {[%clk 0:01:52.8]} 28... Re8 {[%clk 0:01:29.6]} 29. Rxe8+ {[%clk
0:01:46.7]} 29... Bxe8 {[%clk 0:01:30.5]} 30. Qe3 {[%clk 0:01:47]} 30... Kf7
{[%clk 0:01:25.3]} 31. g4 {[%clk 0:01:36.2]} 31... fxg4 {[%clk 0:00:46.5]} 32.
hxg4 {[%clk 0:01:37.1]} 32... Qe7 {[%clk 0:00:32.3]} 33. Qf2 {[%clk 0:01:12.4]}
33... b6 {[%clk 0:00:28]} 34. g5 {[%clk 0:01:12.5]} 34... Qd7 {[%clk 0:00:20.3]}
35. f5 {[%clk 0:00:49.1]} 35... gxf5 {[%clk 0:00:18.5]} 36. Bxf5 {[%clk
0:00:49.3]} 36... Qd6 {[%clk 0:00:15.7]} 37. Be6+ {[%clk 0:00:47.7]} 37... Kf8
{[%clk 0:00:12.8]} 38. gxf6 {[%clk 0:00:46.9]} 38... Bh6 {[%clk 0:00:13.7]} 39.
Be5 {[%clk 0:00:46.6]} 39... Qd8 {[%clk 0:00:11.3]} 40. Qg3 {[%clk 0:00:47]}
40... Bg6 {[%clk 0:00:09.9]} 41. Bd6+ {[%clk 0:00:47.5]} 41... Ke8 {[%clk
0:00:10]} 42. Qxg6+ {[%clk 0:00:47.7]} 42... hxg6 {[%clk 0:00:08.9]} 43. f7#
{[%clk 0:00:48.6]} 1-0

[Event "*** Titled Tuesday Blitz"]
[Site "Chess.com"]
[Date "2021.03.02"]
[Round "3"]
[White "KubaGepard"]
[Black "kamilianin235"]
[Result "1-0"]
[WhiteElo "2402"]
[BlackElo "2195"]
[TimeControl "180+1"]
[EndTime "10:28:12 PST"]
[Termination "KubaGepard won by checkmate"]

1. e4 {[%clk 0:03:00.9]} 1... c5 {[%clk 0:02:47.7]} 2. Nf3 {[%clk 0:02:59.1]}
2... e6 {[%clk 0:02:33.5]} 3. d4 {[%clk 0:02:58.3]} 3... cxd4 {[%clk 0:02:33.4]}
4. Nxd4 {[%clk 0:02:59.2]} 4... a6 {[%clk 0:02:33.2]} 5. Nc3 {[%clk 0:02:56.8]}
5... b5 {[%clk 0:02:32.9]} 6. Bd3 {[%clk 0:02:53.9]} 6... Qb6 {[%clk 0:02:31]}
7. Be3 {[%clk 0:02:52.1]} 7... Bc5 {[%clk 0:02:29.8]} 8. Nce2 {[%clk 0:02:51]}
8... Nf6 {[%clk 0:02:28.6]} 9. f3 {[%clk 0:02:46.3]} 9... e5 {[%clk 0:02:25]}
10. c3 {[%clk 0:02:36.9]} 10... exd4 {[%clk 0:02:23.4]} 11. cxd4 {[%clk
0:02:37]} 11... Bb4+ {[%clk 0:02:17.2]} 12. Kf2 {[%clk 0:02:36.6]} 12... O-O
{[%clk 0:02:14.5]} 13. a3 {[%clk 0:02:30.8]} 13... Be7 {[%clk 0:02:12.7]} 14. g4
{[%clk 0:02:26.9]} 14... Bb7 {[%clk 0:01:59.7]} 15. h4 {[%clk 0:02:26]} 15... d5
{[%clk 0:01:57.8]} 16. e5 {[%clk 0:02:24.9]} 16... Ne8 {[%clk 0:01:54.9]} 17.
Ng3 {[%clk 0:02:19.8]} 17... g6 {[%clk 0:01:47.8]} 18. h5 {[%clk 0:02:10]} 18...
Nc7 {[%clk 0:01:46.2]} 19. Qg1 {[%clk 0:02:00]} 19... g5 {[%clk 0:00:58.6]} 20.
Nf5 {[%clk 0:01:54.6]} 20... Qe6 {[%clk 0:00:54.3]} 21. h6 {[%clk 0:01:42.4]}
21... Bd8 {[%clk 0:00:38.3]} 22. Rh5 {[%clk 0:01:30.2]} 22... Kh8 {[%clk
0:00:31.8]} 23. Bxg5 {[%clk 0:01:29.3]} 23... Bxg5 {[%clk 0:00:31.5]} 24. Rxg5
{[%clk 0:01:30.2]} 24... Nd7 {[%clk 0:00:30.5]} 25. Rg7 {[%clk 0:01:28.3]} 25...
Nxe5 {[%clk 0:00:21]} 26. dxe5 {[%clk 0:01:27.5]} 26... Qxe5 {[%clk 0:00:21.9]}
27. Re1 {[%clk 0:01:17.5]} 27... Qxb2+ {[%clk 0:00:21.2]} 28. Re2 {[%clk
0:01:16.8]} 28... Qc3 {[%clk 0:00:21.4]} 29. Qb1 {[%clk 0:01:16]} 29... Ne6
{[%clk 0:00:19.7]} 30. Kg3 {[%clk 0:00:56.9]} 30... d4 {[%clk 0:00:07.9]} 31.
Re5 {[%clk 0:00:41.6]} 31... Qc7 {[%clk 0:00:06]} 32. f4 {[%clk 0:00:40.4]}
32... Nxg7 {[%clk 0:00:05.3]} 33. hxg7+ {[%clk 0:00:40.2]} 33... Kg8 {[%clk
0:00:05.7]} 34. Qh1 {[%clk 0:00:37.6]} 34... Qc3 {[%clk 0:00:03.9]} 35. Ne7+
{[%clk 0:00:36.3]} 35... Kxg7 {[%clk 0:00:04]} 36. Qxh7+ {[%clk 0:00:36.8]}
36... Kf6 {[%clk 0:00:04.1]} 37. Qh4+ {[%clk 0:00:37.1]} 37... Kg7 {[%clk
0:00:03.2]} 38. Qg5+ {[%clk 0:00:37.4]} 38... Kh8 {[%clk 0:00:03.2]} 39. Qh6#
{[%clk 0:00:38.3]} 1-0

[Event "*** Titled Tuesday Blitz"]
[Site "Chess.com"]
[Date "2021.03.02"]
[Round "3"]
[White "MuhittinBuker"]
[Black "Unknown_IM"]
[Result "1-0"]
[WhiteElo "2122"]
[BlackElo "2373"]
[TimeControl "180+1"]
[EndTime "10:28:14 PST"]
[Termination "MuhittinBuker won by checkmate"]

1. d4 {[%clk 0:03:00.9]} 1... Nf6 {[%clk 0:02:59.9]} 2. c4 {[%clk 0:02:59.9]}
2... c5 {[%clk 0:03:00.2]} 3. d5 {[%clk 0:02:59.3]} 3... g6 {[%clk 0:03:00.3]}
4. Nc3 {[%clk 0:02:58.2]} 4... Bg7 {[%clk 0:03:00.4]} 5. e4 {[%clk 0:02:58.8]}
5... d6 {[%clk 0:03:00.4]} 6. Be2 {[%clk 0:02:58.4]} 6... O-O {[%clk 0:03:00]}
7. Nf3 {[%clk 0:02:59]} 7... Nbd7 {[%clk 0:03:00.4]} 8. O-O {[%clk 0:02:58.8]}
8... Re8 {[%clk 0:02:58.5]} 9. Re1 {[%clk 0:02:55.3]} 9... a6 {[%clk 0:02:58.1]}
10. a4 {[%clk 0:02:54.5]} 10... Qc7 {[%clk 0:02:57.3]} 11. h3 {[%clk 0:02:53.6]}
11... e5 {[%clk 0:02:56.3]} 12. dxe6 {[%clk 0:02:52.2]} 12... fxe6 {[%clk
0:02:57.2]} 13. Bf4 {[%clk 0:02:50.9]} 13... e5 {[%clk 0:02:56.2]} 14. Bg5
{[%clk 0:02:50.4]} 14... Nf8 {[%clk 0:02:55]} 15. Nh2 {[%clk 0:02:45]} 15... Be6
{[%clk 0:02:52.2]} 16. Bxf6 {[%clk 0:02:43.7]} 16... Bxf6 {[%clk 0:02:51.8]} 17.
Nd5 {[%clk 0:02:44.2]} 17... Bxd5 {[%clk 0:02:51.6]} 18. Qxd5+ {[%clk
0:02:44.6]} 18... Kg7 {[%clk 0:02:49.1]} 19. Red1 {[%clk 0:02:44.1]} 19... Rad8
{[%clk 0:02:48.5]} 20. Ng4 {[%clk 0:02:40.5]} 20... Ne6 {[%clk 0:02:44.4]} 21.
Bf1 {[%clk 0:02:18]} 21... Nd4 {[%clk 0:02:39.7]} 22. Rd3 {[%clk 0:01:41.9]}
22... Qc6 {[%clk 0:02:32.8]} 23. Ne3 {[%clk 0:01:38.9]} 23... Bg5 {[%clk
0:02:28.4]} 24. Rad1 {[%clk 0:01:21.1]} 24... Rf8 {[%clk 0:02:22.8]} 25. Ng4
{[%clk 0:00:48.8]} 25... h5 {[%clk 0:02:18.7]} 26. Nh2 {[%clk 0:00:48.5]} 26...
Rf6 {[%clk 0:02:09]} 27. Qxc6 {[%clk 0:00:45.1]} 27... bxc6 {[%clk 0:02:07.9]}
28. Nf3 {[%clk 0:00:35.6]} 28... Bh6 {[%clk 0:02:03.6]} 29. Nxd4 {[%clk
0:00:34.8]} 29... cxd4 {[%clk 0:01:57.5]} 30. Rb3 {[%clk 0:00:35]} 30... c5
{[%clk 0:01:56.4]} 31. Rdd3 {[%clk 0:00:19.7]} 31... Rf7 {[%clk 0:01:51]} 32.
Rb6 {[%clk 0:00:19.3]} 32... Ra7 {[%clk 0:01:50.6]} 33. a5 {[%clk 0:00:19.1]}
33... Rdd7 {[%clk 0:01:50.4]} 34. Rdb3 {[%clk 0:00:19.2]} 34... Bg5 {[%clk
0:01:50.3]} 35. Be2 {[%clk 0:00:18.8]} 35... Bd8 {[%clk 0:01:49.9]} 36. Rb8
{[%clk 0:00:17.1]} 36... Bxa5 {[%clk 0:01:49.9]} 37. Re8 {[%clk 0:00:15.2]}
37... Bb4 {[%clk 0:01:49.7]} 38. Rf3 {[%clk 0:00:11.6]} 38... Rf7 {[%clk
0:01:48.2]} 39. Rxf7+ {[%clk 0:00:10.8]} 39... Kxf7 {[%clk 0:01:48.4]} 40. Rd8
{[%clk 0:00:10.8]} 40... Ke7 {[%clk 0:01:48]} 41. Rg8 {[%clk 0:00:10.5]} 41...
Kf6 {[%clk 0:01:42.4]} 42. Kf1 {[%clk 0:00:08.2]} 42... Rd7 {[%clk 0:01:39.4]}
43. g4 {[%clk 0:00:07.7]} 43... hxg4 {[%clk 0:01:38.9]} 44. Bxg4 {[%clk
0:00:07.8]} 44... Rf7 {[%clk 0:01:35.6]} 45. Re8 {[%clk 0:00:07.1]} 45... Kg5
{[%clk 0:01:35]} 46. Ke2 {[%clk 0:00:07.4]} 46... a5 {[%clk 0:01:33.4]} 47. Re6
{[%clk 0:00:07.4]} 47... Rf6 {[%clk 0:01:33.7]} 48. Re8 {[%clk 0:00:06.8]} 48...
Kf4 {[%clk 0:01:31.8]} 49. f3 {[%clk 0:00:07.1]} 49... g5 {[%clk 0:01:31]} 50.
Rg8 {[%clk 0:00:06.2]} 50... a4 {[%clk 0:01:21.2]} 51. h4 {[%clk 0:00:03.9]}
51... gxh4 {[%clk 0:01:20.7]} 52. Bf5 {[%clk 0:00:04.1]} 52... Rxf5 {[%clk
0:01:17.4]} 53. Rg4# {[%clk 0:00:03.9]} 1-0

[Event "*** Titled Tuesday Blitz"]
[Site "Chess.com"]
[Date "2021.03.02"]
[Round "3"]
[White "Ali-Farahat"]
[Black "KNCP_719"]
[Result "1-0"]
[WhiteElo "2422"]
[BlackElo "2586"]
[TimeControl "180+1"]
[EndTime "10:28:15 PST"]
[Termination "Ali-Farahat won on time"]

1. e4 {[%clk 0:03:00.9]} 1... Nf6 {[%clk 0:02:59.5]} 2. e5 {[%clk 0:03:00.6]}
2... Nd5 {[%clk 0:02:50.6]} 3. d4 {[%clk 0:03:00.4]} 3... d6 {[%clk 0:02:51]} 4.
Nf3 {[%clk 0:03:00.1]} 4... g6 {[%clk 0:02:51]} 5. c4 {[%clk 0:02:57.6]} 5...
Nb6 {[%clk 0:02:51]} 6. exd6 {[%clk 0:02:57.6]} 6... cxd6 {[%clk 0:02:51.9]} 7.
Be3 {[%clk 0:02:51.8]} 7... Bg7 {[%clk 0:02:52.4]} 8. Be2 {[%clk 0:02:51.6]}
8... O-O {[%clk 0:02:52.8]} 9. Nc3 {[%clk 0:02:50.9]} 9... Nc6 {[%clk
0:02:32.6]} 10. h3 {[%clk 0:02:49.3]} 10... Bf5 {[%clk 0:02:30.2]} 11. Qd2
{[%clk 0:02:47.6]} 11... d5 {[%clk 0:02:28.4]} 12. c5 {[%clk 0:02:44.3]} 12...
Nc4 {[%clk 0:02:28.3]} 13. Bxc4 {[%clk 0:02:43.9]} 13... dxc4 {[%clk 0:02:29.2]}
14. Kf1 {[%clk 0:02:35.2]} 14... Bd3+ {[%clk 0:02:22.8]} 15. Kg1 {[%clk
0:02:34.2]} 15... e5 {[%clk 0:02:19.5]} 16. dxe5 {[%clk 0:02:25.1]} 16... Nxe5
{[%clk 0:02:19.7]} 17. Nxe5 {[%clk 0:02:24.9]} 17... Bxe5 {[%clk 0:02:20.6]} 18.
h4 {[%clk 0:02:23.8]} 18... Qf6 {[%clk 0:01:40.5]} 19. h5 {[%clk 0:02:17.9]}
19... Qe6 {[%clk 0:01:40.7]} 20. Re1 {[%clk 0:02:08]} 20... Qf5 {[%clk
0:01:31.4]} 21. Nd5 {[%clk 0:02:03.7]} 21... Rae8 {[%clk 0:01:29.8]} 22. Bh6
{[%clk 0:01:53.6]} 22... Bg7 {[%clk 0:00:55.6]} 23. Ne7+ {[%clk 0:01:47.2]}
23... Rxe7 {[%clk 0:00:49.8]} 24. Rxe7 {[%clk 0:01:48.1]} 24... gxh5 {[%clk
0:00:29.6]} 25. Bxg7 {[%clk 0:01:42.6]} 25... Kxg7 {[%clk 0:00:30.5]} 26. Rh3
{[%clk 0:01:40.1]} 26... Qf6 {[%clk 0:00:21.8]} 27. Qe3 {[%clk 0:01:33.8]} 27...
Kh8 {[%clk 0:00:20.7]} 28. Rf3 {[%clk 0:01:32.1]} 28... Qg7 {[%clk 0:00:19.2]}
29. Rexf7 {[%clk 0:01:22.7]} 29... Rxf7 {[%clk 0:00:11.5]} 30. Qe8+ {[%clk
0:01:22.3]} 30... Qf8 {[%clk 0:00:01]} 31. Qxf8+ {[%clk 0:01:21.4]} 31... Rxf8
{[%clk 0:00:01.9]} 32. Rxf8+ {[%clk 0:01:21.5]} 32... Kg7 {[%clk 0:00:02.8]} 33.
Rc8 {[%clk 0:01:20.1]} 33... Be4 {[%clk 0:00:02.8]} 34. Rc7+ {[%clk 0:01:21]}
34... Kg6 {[%clk 0:00:03]} 35. f3 {[%clk 0:01:20.7]} 35... Bc6 {[%clk
0:00:02.7]} 36. Kf2 {[%clk 0:01:20.2]} 36... h4 {[%clk 0:00:03.2]} 37. Ke3
{[%clk 0:01:19.9]} 37... h5 {[%clk 0:00:03.7]} 38. Kf4 {[%clk 0:01:19.7]} 38...
Kf6 {[%clk 0:00:03.7]} 39. Rh7 {[%clk 0:01:16.9]} 39... Kg6 {[%clk 0:00:04]} 40.
Rc7 {[%clk 0:01:15.2]} 40... a5 {[%clk 0:00:04.1]} 41. Rc8 {[%clk 0:01:06.6]}
41... a4 {[%clk 0:00:04.2]} 42. Rg8+ {[%clk 0:01:05]} 42... Kf6 {[%clk
0:00:04.6]} 43. Rh8 {[%clk 0:01:02.7]} 43... Kg6 {[%clk 0:00:05]} 44. Rd8 {[%clk
0:00:59.3]} 44... Kf6 {[%clk 0:00:03.4]} 45. Ke3 {[%clk 0:00:57.3]} 45... Ke5
{[%clk 0:00:02.5]} 46. Rh8 {[%clk 0:00:55.6]} 1-0